Cogmind - Beta 16 --- EXPLORER MODE // 2025.11.27 @ 11:02:05 Player: K.K.Y. Result: Destroyed by S-10 Pest with Light Assault Rifle Performance ------------- Evolutions (0) 0 Regions Visited (3) 600 Robots Destroyed (15) 75 Value Destroyed (464) 464 Prototype IDs (12) 240 Alien Tech Used (0) 0 Bonus (0) 0 TOTAL SCORE: 1379 Bonus ------- None Cogmind --------- Core Integrity 0/250 Matter 275/300 Energy 83/100 System Corruption 0% Temperature Cool (4) Movement Core (200) Ox3 Location -10/Subcaves Parts ------- > --- POWER (1) -------- (None) > --- PROPULSION (3) --- (None) > --- UTILITY (2) ------ Scrap Suit > --- WEAPON (2) ------- Subdweller Laser Battle Cannon > --- INVENTORY (5) ---- Flightbrick Core Shielding Peak State ------------ > --- POWER ------------ (None) > --- PROPULSION ------- Aluminum Leg > --- UTILITY ---------- Scrap Suit > --- WEAPON ----------- Subdweller Laser Subdweller Laser > --- INVENTORY -------- Flightbrick Core Shielding [Rating: 16] Favorites ----------- Power Deuterium Engine Engine Deuterium Engine Propulsion Flight Unit Leg Aluminum Leg Flight Unit Flight Unit Utility Scrap Suit Device Scrap Suit Protection Improved Light Armor Plating Weapon Subdweller Laser Energy Gun Subdweller Laser Ballistic Gun Light Assault Rifle Ballistic Cannon Battle Cannon Special Weapon Mining Laser Build | -11 -10 -10 -10 ------- Run | Yrd Mat Min Sub Slots Evolved 1 | . 1 . . Power . | . . . . Propulsion 1 | . 1 . . Utility . | . . . . Weapon . | . . . . Parts Attached 15 | . 4 3 8 Power 1 | . . 1 . Engine 1 | . . 1 . Core . | . . . . Reactor . | . . . . Propulsion 4 | . 2 1 1 Treads . | . . . . Leg 1 | . . . 1 Wheel . | . . . . Hover . | . . . . Flight 3 | . 2 1 . Utility 3 | . . 1 2 Device 2 | . . 1 1 Storage . | . . . . Processor . | . . . . Hackware . | . . . . Protection 1 | . . . 1 Artifact . | . . . . Weapon 7 | . 2 . 5 Energy Gun 2 | . . . 2 Energy Cannon . | . . . . Ballistic Gun 3 | . 2 . 1 Ballistic Cannon 1 | . . . 1 Launcher . | . . . . Special Weapon 1 | . . . 1 Impact Weapon . | . . . . Slashing Weapon . | . . . . Piercing Weapon . | . . . . Special Melee Weapon . | . . . . Unidentified Prototypes . | . . . . Parts Lost 10 | . . . 10 Power 1 | . . . 1 Propulsion 4 | . . . 4 Utility 2 | . . . 2 Weapon 3 | . . . 3 Highest Loss Streak 7 | . . . 7 To Critical Strikes . | . . . . Average Backups 2 | 2 4 3 2 Power . | . 1 . . Propulsion . | . . . . Utility 1 | . 1 2 1 Weapon . | . 1 . . Tool/Special . | . . . . Unused Backups 6 | . 2 1 3 Power 1 | . . 1 . Propulsion 2 | . 1 . 1 Utility 2 | . . . 2 Weapon 1 | . 1 . . Tool/Special . | . . . . Average Slot Usage (%) 45 | . 15 62 44 Engine 1 | . . 5 1 Leg 3 | . . . 4 Flight 7 | . 5 31 4 Device 5 | . . . 6 Protection 3 | . . . 3 Energy Gun 11 | . . . 13 Ballistic Gun 9 | . 10 25 7 Ballistic Cannon 1 | . . . 1 Peak Build Rating 16 | . 4 12 16 Average Rating 9 | . 1 7 10 On Entrance 4 | . . 4 12 Avg Prop Armor Cover (%) . | . . . . Naked Turns 52 | . 50 . 2 Heaviest Build 12 | . 2 12 12 Greatest Support 12 | 3 8 12 12 Greatest Overweight (x) 3 | . . . 3 Average Overweight (x) . | . . . 1 Largest Inventory Capacity 5 | 5 5 5 5 Average Capacity 5 | 5 5 5 5 Most Carried 5 | 5 5 5 5 Average Carried 4 | 3 3 4 4 Final Capacity 5 | 5 5 5 5 Final Carried 5 | 5 2 5 5 Scrap Suit Usage (%) 33 | . . . 40 Class Distribution -------------------- 65% | Hacker-Mutant 34% | Hacker-Scrapper Dominant Class ---------------- Hacker-Mutant | -10/Materials Hacker-Mutant | -10/Mines Hacker-Mutant | -10/Subcaves Resources | -11 -10 -10 -10 ----------- Run | Yrd Mat Min Sub Matter Collected 422 | 147 89 66 120 Remotely . | . . . . Salvage Created 613 | . 136 139 338 Parts 41 | . 8 10 23 Haulers Intercepted . | . . . . Recyclers Shooed . | . . . . Parts Field Recycled . | . . . . Retrieved Matter . | . . . . Parts Self-Destructed . | . . . . Prevented . | . . . . Parts Restored . | . . . . Kills | -11 -10 -10 -10 ------- Run | Yrd Mat Min Sub Combat Hostiles Destroyed 12 | . . 3 9 Guns 11 | . . 3 8 Cannons 1 | . . . 1 Classes Destroyed 5 | . 1 2 2 Tunneler 1 | . . 1 . Recycler 2 | . 2 . . Swarmer 1 | . . . 1 Grunt 3 | . . 3 . Subdweller 8 | . . . 8 Best Kill Streak 3 | . 2 3 2 Combat Bots Only 3 | . . 3 2 Max Kills in Single Turn 1 | . 1 1 1 Gunslinging . | . . . . Exploded . | . . . . Melee . | . . . . Uniques/NPCs Destroyed . | . . . . Combat | -11 -10 -10 -10 -------- Run | Yrd Mat Min Sub Hostile Shots Fired 157 | . . 21 136 Missed 42 | . . 4 38 Hits 115 | . . 17 98 Projectile 115 | . . 17 98 Critical Strikes 2 | . . 1 1 Damage Taken 1046 | . . 134 912 Core 252 | . . 6 246 Absorbed by Shields . | . . . . Ignored by Resistances 655 | . . 83 572 Core Remaining (%) 100 | 100 . . . Volleys Fired 105 | . 4 12 89 Largest 2 | . 2 2 2 Hottest 120 | . 40 40 120 Shots Fired 153 | . 8 24 121 Gun 112 | . 8 24 80 Cannon 6 | . . . 6 Launcher . | . . . . Special 35 | . . . 35 Kinetic 93 | . 8 24 61 Thermal 60 | . . . 60 Explosive . | . . . . Electromagnetic . | . . . . Robot Hit Streak 53 | . 7 22 53 Robot Miss Streak 2 | . . 1 2 Penetration Max . | . . . . Secondary Targets 1 | . . 1 . Max Gunslinging Chain 1 | . . 1 . Shots Hit Robots 79 | . 7 22 50 Core Hits 34 | . 4 10 20 Critical Kills 2 | . . 1 1 Critical Parts Destroyed . | . . . . Critical Strikes 3 | . . 1 2 Destroy 2 | . . 1 1 Blast 1 | . . . 1 Melee Attacks . | . . . . Impact . | . . . . Slashing . | . . . . Piercing . | . . . . Sneak Attacks . | . . . . Combat Hostiles . | . . . . Follow-up Attacks . | . . . . Damage Inflicted 1023 | . 56 171 796 Guns 876 | . 56 171 649 Cannons 99 | . . . 99 Explosions . | . . . . Melee . | . . . . Ramming . | . . . . Kinetic 718 | . 56 171 491 Thermal 305 | . . . 305 Explosive . | . . . . Electromagnetic . | . . . . Impact . | . . . . Slashing . | . . . . Piercing . | . . . . Highest Corruption . | . . . . Average Corruption . | . . . . Corruption Purged . | . . . . Corruption Blocked . | . . . . Overload Shots . | . . . . Overflow Damage 6 | . . . 6 Projectiles 6 | . . . 6 Explosions . | . . . . Melee . | . . . . Knockbacks 1 | . . . 1 Impact . | . . . . Kinetic 1 | . . . 1 Secondary . | . . . . Self-Inflicted Damage . | . . . . Shots . | . . . . Rammed . | . . . . Targets Rammed . | . . . . Kicked . | . . . . Crushed . | . . . . Highest Temperature 127 | . . 127 4 Average Temperature 57 | . . 63 4 Received Heat Transfer 486 | . . 138 348 Siege Activations . | . . . . Martial Activations . | . . . . Shielding Activations . | . . . . Robots Disrupted . | . . . . Combat Hostiles . | . . . . Robots Corrupted . | . . . . Combat Hostiles . | . . . . Parts Fried . | . . . . Impact Corruptions . | . . . . Robots Melted . | . . . . Combat Hostiles . | . . . . Parts Melted 6 | . . . 6 Heat Transferred 400 | . . . 400 Parts Sabotaged . | . . . . Parts Stolen . | . . . . Parts Stripped . | . . . . Power Chain Reactions . | . . . . Alert | -11 -10 -10 -10 ------- Run | Yrd Mat Min Sub Maximum Alert Level . | . . . . Low Security (%) 100 | 100 100 100 . Level 1 . | . . . . Level 2 . | . . . . Level 3 . | . . . . Level 4 . | . . . . Level 5 . | . . . . High Security . | . . . . Max Security . | . . . . Peak Influence 65 | . 10 65 . Initial . | . . . . Average 8 | . 1 11 . Influence Increases 115 | . 10 85 20 Destroy 0b10 Robot/C 80 | . . 60 20 Destroy 0b10 Robot/NC 15 | . 10 5 . Destroy Leader 20 | . . 20 . Influence Decreases 115 | . 10 85 20 Time Decay 105 | . 10 85 10 Lost Part 10 | . . . 10 Squads Dispatched 1 | . . 1 . Investigation 1 | . . 1 . Extermination . | . . . . Reinforcement . | . . . . Assault . | . . . . Garrison . | . . . . Intercept . | . . . . Searches Triggered . | . . . . Construction Impeded . | . . . . Haulers Reinforced . | . . . . Active Scanning Responses . | . . . . Cargo Convoy Interrupts . | . . . . Stealth | -11 -10 -10 -10 --------- Run | Yrd Mat Min Sub Distress Signals . | . . . . Communications Jammed . | . . . . Distress Signals . | . . . . Times Spotted 21 | . 3 4 14 Peak Tracking Total 6 | . 3 4 6 Tactical Retreats . | . . . . Traps | -11 -10 -10 -10 ------- Run | Yrd Mat Min Sub Traps Triggered . | . . . . Indirectly . | . . . . Trap Hack Attempts . | . . . . Triggered . | . . . . Disarmed . | . . . . Reprogrammed . | . . . . Reused . | . . . . Traps Extracted . | . . . . Installed . | . . . . Triggered . | . . . . Machines | -11 -10 -10 -10 ---------- Run | Yrd Mat Min Sub Machines Disabled 2 | . . . 2 Max in Single Turn 1 | . . . 1 Machines Repaired . | . . . . Machines Dismantled . | . . . . Machines Sabotaged . | . . . . Overloaded Fab Kills . | . . . . Hacking | -11 -10 -10 -10 --------- Run | Yrd Mat Min Sub Machines Accessed 2 | . . 1 1 Terminals . | . . . . Fabricators . | . . . . Repair Stations . | . . . . Recycling Units . | . . . . Scanalyzers . | . . . . Garrison Access . | . . . . Total Hacks 2 | . . 1 1 Successful 2 | . . 1 1 Failed . | . . . . Catastrophic . | . . . . Database Lockouts . | . . . . Manual . | . . . . Terminals . | . . . . Fabricators . | . . . . Repair Stations . | . . . . Recycling Units . | . . . . Scanalyzers . | . . . . Garrison Access . | . . . . Terminal Hacks 2 | . . 1 1 Open Door 1 | . . 1 . Proto ID Catalog 1 | . . . 1 Fabricator Hacks . | . . . . Repair Station Hacks . | . . . . Recycling Unit Hacks . | . . . . Scanalyzer . | . . . . Garrison Access Hacks . | . . . . Unauthorized Hacks . | . . . . Terminals . | . . . . Fabricators . | . . . . Repair Stations . | . . . . Recycling Units . | . . . . Scanalyzers . | . . . . Garrison Access . | . . . . Data Cores Recovered . | . . . . Used . | . . . . Hacking Detections . | . . . . Full Trace Events . | . . . . Feedback Events . | . . . . Feedback Blocked . | . . . . Robot Schematics Acquired . | . . . . Robots Built . | . . . . Authchips . | . . . . Time . | . . . . Total Robot Build Rating . | . . . . Part Schematics Acquired . | . . . . Parts Built . | . . . . Authchips . | . . . . Time . | . . . . Total Part Build Rating . | . . . . Part Studies Acquired . | . . . . Parts Repaired . | . . . . Time . | . . . . Parts Recycled . | . . . . Recycled Matter . | . . . . Retrieved Matter . | . . . . Retrieved Components . | . . . . Parts Scanalyzed . | . . . . Part Schematics Acquired . | . . . . Parts Damaged . | . . . . Bothacking | -11 -10 -10 -10 ------------ Run | Yrd Mat Min Sub Used RIF Installer . | . . . . Robots Hacked . | . . . . Non-combat . | . . . . Combat . | . . . . Robot Hacks Applied . | . . . . Relay Couplers Released . | . . . . Fabnet Peak Effective % . | . . . . Robots Rewired . | . . . . Allies Hacked . | . . . . Hacks Repelled . | . . . . Allies | -11 -10 -10 -10 -------- Run | Yrd Mat Min Sub Total Allies . | . . . . Largest Group . | . . . . Highest-Rated Group . | . . . . Highest-Rated Ally . | . . . . Total Orders . | . . . . Ally Attacks . | . . . . Total Damage . | . . . . Kills . | . . . . Allies Corrupted . | . . . . Allies Melted . | . . . . Intel | -11 -10 -10 -10 ------- Run | Yrd Mat Min Sub Active Infowar (turns) 228 | . . 7 221 Terrain 228 | . . 7 221 Robot Analysis Total . | . . . . Derelict Logs Recovered 1 | . . . 1 Drone Launches . | . . . . Drone Recoveries . | . . . . Exploration | -11 -10 -10 -10 ------------- Run | Yrd Mat Min Sub Turns Passed 2330 | 29 90 267 1944 Spaces Moved 1856 | 48 157 527 1124 Core 748 | 48 107 . 593 Treads . | . . . . Legs 396 | . . . 396 Wheels . | . . . . Hover . | . . . . Flight 712 | . 50 527 135 Fastest Speed 34 | 50 37 34 34 Average Speed 102 | 50 45 35 144 Slowest Speed 200 | 50 50 37 200 Overloaded Moves . | . . . . Propulsion Burnouts . | . . . . Robots Hopped 1 | . . 1 . Potential Cave-ins . | . . . . Cave-ins Triggered . | . . . . Exploration Rate (%) 54 | 3 38 98 79 Regions Visited 3 Branch Regions 2 Pre-discovered Areas . | . . . . Known Exits Taken 3 | 1 1 1 . Unknown Exits Taken . | . . . . Scrap Searched . | . . . . Spaces Dug . | . . . . Terrain Destroyed . | . . . . Melee . | . . . . Projectile . | . . . . AOE . | . . . . Terrain Rammed . | . . . . Walls Destroyed . | . . . . Machines Disabled . | . . . . Actions | -11 -10 -10 -10 --------- Run | Yrd Mat Min Sub Total 2064 | 52 168 585 1259 Wait 65 | . . 40 25 Move 1851 | 47 156 524 1124 Hop 1 | . . 1 . Pick Up 17 | 5 2 4 6 Fast Attach 5 | . 1 2 2 Attach 9 | . 3 1 5 Detach 1 | . . . 1 Swap 2 | . . . 2 Drop 8 | . 2 1 5 Fire 105 | . 4 12 89 Melee . | . . . . Ram . | . . . . Kick . | . . . . Crush . | . . . . Escape Stasis . | . . . . Rewire . | . . . . Trap . | . . . . Miscellaneous . | . . . . Route ------- -11/Scrapyard -10/Materials -10/Mines (discovered 3 exits: *Mat x2 / *Sub) -10/Subcaves (discovered 1 exit: *Rec) History --------- Turn | Location | Event 4 | -11/Scrapyard | Identified exit to Materials 4 | -11/Scrapyard | Discovered exit to Materials (range 16) 30 | -11/Scrapyard | Entered Materials 30 | -10/Materials | Evolved 1 slot: Propulsion x1 77 | -10/Materials | Met 8R-AWN 111 | -10/Materials | Identified exit to Mines 111 | -10/Materials | Discovered exit to Mines (range 12) 120 | -10/Materials | Entered Mines 137 | -10/Mines | Found a Scrap Suit stashed away for nefarious purposes 138 | -10/Mines | Found Scrap Suit 237 | -10/Mines | Met a Derelict shopkeep closing up shop 268 | -10/Mines | Identified exit to Subcaves 268 | -10/Mines | Discovered exit to Subcaves (range 6) 310 | -10/Mines | Build established: Hacker-Mutant 333 | -10/Mines | Identified exit to Materials 333 | -10/Mines | Discovered exit to Materials (range 3) 345 | -10/Mines | Discovered exit to Materials (range 10) 387 | -10/Mines | Entered Subcaves 415 | -10/Subcaves | A swath of the cavern ceiling suddenly collapsed 639 | -10/Subcaves | Lost 7 parts (1p3n1u2w) 1221 | -10/Subcaves | Core integrity fell below 50% 1520 | -10/Subcaves | Visited 4L-MR0's lab 1541 | -10/Subcaves | Found Flightbrick 1629 | -10/Subcaves | A swath of the cavern ceiling suddenly collapsed 1834 | -10/Subcaves | Build established: Hacker-Scrapper 2057 | -10/Subcaves | Learned Materials stockpile data 2312 | -10/Subcaves | Identified exit to Recycling 2312 | -10/Subcaves | Discovered exit to Recycling (range 11) 2325 | -10/Subcaves | Core integrity fell below 20% 2331 | -10/Subcaves | Destroyed by S-10 Pest with Light Assault Rifle Last Messages --------------- 02104_ Dropped Sub. Laser. 02105_ Scrap Suit secures Sub. Laser. 02111_ Subatomizers dissect the Heat Sink. 02113_ Acquired 10 matter. 02124_ Subatomizers dissect the Heat Sink. 02153_ Subatomizers dissect the Disposable Heat Sink. 02228_ Subatomizers dissect the Disposable Heat Sink, destroying it. 02242_ Subatomizers dissect the Lgt. Armor Plating. 02312_ EXIT=FOUND: RECYCLING 02314_ S-10 Pest springs to life. 02316_ S-10 Pest destroyed. 02316_ Aluminum Leg destroyed. 02316_ S-10 Pest destroyed. 02320_ Machine disabled. 02322_ Destroyed Flight Unit. 02326_ Autobeam Turret Autobeam blasted off. 02327_ S-10 Pest destroyed. Map ----- +----------------------------------------------------+ | ????????????????????# #?# ##????? ?# | | #??????????????????## #?# #????# #?# | | ##?????????????????# ##?# ##????# #?# | | #???????????????#### ##?# #?????# #?# | | #??????????????## # ### #?????# ### | | #??????????????# ### #????## ## | | #??????????????# ## ## #???## | | #??????????????# ##??# | | #??????????????# #????# | | #??????????????# #######?????# | | #??????????????# ## ####????????## | | #??????????????##### #????###??## | | #??????????????### # #????# ####### | | #?????????????## ##???# ## | | #????????????## ##??# | | ##????????????# ## # #### | | #????????????## #### ## # | | ?###?????????# ### ###### | | ## ####??????# ### ### ##??#?? | | #?????## ##?##### ## #####?? | | ####### ######??# ## ## ##? | | ## ##""" "# ## ## | | ## ###" ## ### | | ##?#" [ #### ### | | ##?#""t% %[ ## | | ##> ==@ ###### | | ###"t [s%%= #???## ## ### | | #?#"% =########??#?# ?###?# # | | #?# ####?#????#?## ???#?# # | | ###### #?#""" "# ##?#??????## ?????# # | | ####?## #?##########"###?#?????######## ## | | #??# #?#####""##"# ############ &## ## | | ##??#####?## ""##" "## "#""## &%! # | | ##?#####???# """" #########"#"## & & | | ##??# ###?####"#""###????##""" | | ###?# ##?######"############" # # | | ### ### #####" ### ######## ## | | ###"" ## #?????# ##? | | #### #""# " ###????? ####?? | | ##??# ## ""# ## #???# ? ##????? | | #???################# ### ######?#??? ##?????? | | ?????????????#??##??####?###?#??#??#??#####?????#? | | ????????????????#?#??#??#????##?????#????????????? | | ?????????????????????????????#???#???????????????? | | ????????????????????????#????????????#???????????# | | ???????????????????????#?#???????????????????????? | | ?????????????????????????????????????????????????? | | ?????????????????????????????????????????????????? | | ?????#???????????????????????????????????????????? | | ?????????????????????????????????????????????????? | +----------------------------------------------------+ Best States ------------- Heat Dissipation 25 Energy Generation 14 Energy Capacity 275 Matter Stores 300 Matter Capacity 300 Sight Range 16 Terrain Scan Range 16 Terrain Scan Density 10 Armor Coverage 150 Resistance: KI 35 Resistance: TH 35 Resistance: EX 35 Resistance: EM 35 Resistance: I 35 Resistance: S 35 Resistance: P 35 Evasion (%) 63 Offensive Hacking 20 Item Schematics ----------------- None Robot Schematics ------------------ None Fabricated ------------ Nothing Repaired ---------- Nothing Studied --------- None Alien Tech Used ----------------- None Achievements -------------- None Challenges ------------ None Game ------ Seed AssembledHackingWartreads Manual? 0 Play Time 00:11:49 Cumulative 146.3 hours Start 2025.11.27 @ 10:50:52 End 2025.11.27 @ 11:02:05 Sessions 1 Manual Loads 0 Difficulty Explorer Special Mode None Game No. 179 Rogue 0 Adventurer 0 Explorer 179 Win Type - Total 0 Types 0/0/0/0/0/0/0/0/0/0 Lore% 69 Gallery% 66 Achievement% 52 Wizard Run 0 Options --------- Layout 1 ASCII 0 Keyboard 0 Movement Mouse Keybinds 0 Fullscreen 1 Font 24/Smallcaps Map View 50x35 Zoom Use 0% Tactical HUD 1 Map Filters NONE Filters NONE Steam 1 RUN: baf5c696-84a4-4af1-a44b-b2ac59a9f7b4